[Event "*** Titled Tuesday Blitz"]
[Site "Chess.com"]
[Date "2021.02.16"]
[Round "8"]
[White "Iskusnyh"]
[Black "marianokar"]
[Result "1/2-1/2"]
[WhiteElo "2599"]
[BlackElo "2453"]
[TimeControl "180+1"]
[EndTime "11:30:53 PST"]
[Termination "Game drawn by stalemate"]

1. d4 {[%clk 0:03:00.9]} 1... Nf6 {[%clk 0:02:08.2]} 2. c4 {[%clk 0:02:59]} 2...
e6 {[%clk 0:02:08.6]} 3. g3 {[%clk 0:02:58.9]} 3... d5 {[%clk 0:02:08.4]} 4. Nf3
{[%clk 0:02:58]} 4... Be7 {[%clk 0:02:08.3]} 5. Bg2 {[%clk 0:02:58.1]} 5... O-O
{[%clk 0:02:08.8]} 6. O-O {[%clk 0:02:58.2]} 6... dxc4 {[%clk 0:02:08]} 7. Qa4
{[%clk 0:02:58.3]} 7... a6 {[%clk 0:02:07.4]} 8. Qxc4 {[%clk 0:02:58.9]} 8... b5
{[%clk 0:02:08]} 9. Qc2 {[%clk 0:02:59.5]} 9... Bb7 {[%clk 0:02:08.4]} 10. Bd2
{[%clk 0:03:00.2]} 10... Be4 {[%clk 0:02:06.9]} 11. Qc1 {[%clk 0:03:00.2]} 11...
c6 {[%clk 0:02:07.4]} 12. Nc3 {[%clk 0:02:54.9]} 12... Bg6 {[%clk 0:02:07.6]}
13. Rd1 {[%clk 0:02:41.9]} 13... Nbd7 {[%clk 0:02:06.6]} 14. Ne5 {[%clk
0:02:24.5]} 14... Nxe5 {[%clk 0:01:54.2]} 15. dxe5 {[%clk 0:02:24]} 15... Nd5
{[%clk 0:01:54.8]} 16. Ne4 {[%clk 0:02:23.5]} 16... Qc7 {[%clk 0:00:51.9]} 17.
Nd6 {[%clk 0:02:17.6]} 17... Bxd6 {[%clk 0:00:50.4]} 18. exd6 {[%clk 0:02:17.2]}
18... Qxd6 {[%clk 0:00:51.1]} 19. e4 {[%clk 0:02:17.5]} 19... Nf6 {[%clk
0:00:46.4]} 20. Bf4 {[%clk 0:02:13.8]} 20... Qe7 {[%clk 0:00:33.3]} 21. Bd6
{[%clk 0:02:12.7]} 21... Qb7 {[%clk 0:00:33.7]} 22. Bxf8 {[%clk 0:02:11.5]}
22... Rxf8 {[%clk 0:00:34.6]} 23. Qe3 {[%clk 0:02:07.7]} 23... c5 {[%clk
0:00:32.7]} 24. Qxc5 {[%clk 0:02:04.9]} 24... Bxe4 {[%clk 0:00:31.7]} 25. Bf1
{[%clk 0:01:49.8]} 25... Bd5 {[%clk 0:00:30.1]} 26. Rac1 {[%clk 0:01:45.1]}
26... Ne4 {[%clk 0:00:28.7]} 27. Qc7 {[%clk 0:01:41.9]} 27... Qa8 {[%clk
0:00:27.5]} 28. Bg2 {[%clk 0:01:37.3]} 28... h6 {[%clk 0:00:26]} 29. a3 {[%clk
0:01:33.6]} 29... Nf6 {[%clk 0:00:21.7]} 30. Bxd5 {[%clk 0:01:28.9]} 30... Nxd5
{[%clk 0:00:22.6]} 31. Qc6 {[%clk 0:01:28.5]} 31... Qa7 {[%clk 0:00:21.4]} 32.
Qc5 {[%clk 0:01:22.5]} 32... Qb7 {[%clk 0:00:20.4]} 33. h4 {[%clk 0:01:19.9]}
33... Rb8 {[%clk 0:00:19.5]} 34. Qc6 {[%clk 0:01:18.8]} 34... Qa7 {[%clk
0:00:18.6]} 35. Rc5 {[%clk 0:01:15.8]} 35... Kh7 {[%clk 0:00:15.4]} 36. Rdc1
{[%clk 0:01:15.1]} 36... h5 {[%clk 0:00:15.2]} 37. Qd6 {[%clk 0:01:13.7]} 37...
g6 {[%clk 0:00:14]} 38. Rc7 {[%clk 0:01:10]} 38... Nxc7 {[%clk 0:00:12.6]} 39.
Rxc7 {[%clk 0:01:09.9]} 39... Rb7 {[%clk 0:00:13.5]} 40. Rc8 {[%clk 0:01:05]}
40... Rd7 {[%clk 0:00:13.1]} 41. Qc6 {[%clk 0:00:57.2]} 41... Qd4 {[%clk
0:00:12.4]} 42. Qf3 {[%clk 0:00:53.4]} 42... Qxb2 {[%clk 0:00:10.7]} 43. Kg2
{[%clk 0:00:51.3]} 43... Qd4 {[%clk 0:00:09.9]} 44. Ra8 {[%clk 0:00:50]} 44...
Qd5 {[%clk 0:00:06.3]} 45. Rxa6 {[%clk 0:00:48.4]} 45... Qxf3+ {[%clk
0:00:05.9]} 46. Kxf3 {[%clk 0:00:48.6]} 46... Kg7 {[%clk 0:00:06.1]} 47. Rb6
{[%clk 0:00:47.4]} 47... Rd5 {[%clk 0:00:06.3]} 48. Rb7 {[%clk 0:00:47.6]} 48...
Kf6 {[%clk 0:00:07.2]} 49. Ke3 {[%clk 0:00:47.8]} 49... Kg7 {[%clk 0:00:06.3]}
50. Ke4 {[%clk 0:00:45.3]} 50... Rc5 {[%clk 0:00:06]} 51. Ke3 {[%clk 0:00:44.7]}
51... Rc3+ {[%clk 0:00:06]} 52. Ke2 {[%clk 0:00:42.6]} 52... Rxa3 {[%clk
0:00:06.9]} 53. Rxb5 {[%clk 0:00:42.7]} 53... Kf6 {[%clk 0:00:07]} 54. Rb7
{[%clk 0:00:42.8]} 54... e5 {[%clk 0:00:07]} 55. Rc7 {[%clk 0:00:41.6]} 55...
Kf5 {[%clk 0:00:07.1]} 56. Rxf7+ {[%clk 0:00:40.7]} 56... Ke6 {[%clk 0:00:07.3]}
57. Rf8 {[%clk 0:00:40.6]} 57... Rb3 {[%clk 0:00:06.5]} 58. Kf1 {[%clk
0:00:40.2]} 58... Ra3 {[%clk 0:00:06.4]} 59. Kg2 {[%clk 0:00:39.9]} 59... Rb3
{[%clk 0:00:06.7]} 60. Rf3 {[%clk 0:00:39.5]} 60... Rxf3 {[%clk 0:00:04.1]} 61.
Kxf3 {[%clk 0:00:39.3]} 61... Kf5 {[%clk 0:00:05]} 62. Ke3 {[%clk 0:00:39.5]}
62... g5 {[%clk 0:00:05]} 63. hxg5 {[%clk 0:00:38.2]} 63... Kxg5 {[%clk
0:00:05.9]} 64. Ke4 {[%clk 0:00:38.5]} 64... Kf6 {[%clk 0:00:06.6]} 65. Kf3
{[%clk 0:00:35.9]} 65... Kf5 {[%clk 0:00:06.7]} 66. Kg2 {[%clk 0:00:36.2]} 66...
e4 {[%clk 0:00:06.3]} 67. Kh3 {[%clk 0:00:36.1]} 67... Kg5 {[%clk 0:00:06.5]}
68. Kg2 {[%clk 0:00:36.2]} 68... Kg4 {[%clk 0:00:06.7]} 69. Kg1 {[%clk
0:00:36.4]} 69... h4 {[%clk 0:00:06.9]} 70. gxh4 {[%clk 0:00:35.2]} 70... Kxh4
{[%clk 0:00:07.8]} 71. Kf1 {[%clk 0:00:35.3]} 71... Kg4 {[%clk 0:00:08.3]} 72.
Ke2 {[%clk 0:00:35.6]} 72... Kf4 {[%clk 0:00:08.7]} 73. Kd2 {[%clk 0:00:35.7]}
73... Kf3 {[%clk 0:00:08.7]} 74. Ke1 {[%clk 0:00:36.2]} 74... e3 {[%clk
0:00:09.3]} 75. Kf1 {[%clk 0:00:35.2]} 75... exf2 {[%clk 0:00:08.6]} 1/2-1/2

[Event "*** Titled Tuesday Blitz"]
[Site "Chess.com"]
[Date "2021.02.16"]
[Round "8"]
[White "djano"]
[Black "ChelsieMonica"]
[Result "1/2-1/2"]
[WhiteElo "2461"]
[BlackElo "2333"]
[TimeControl "180+1"]
[EndTime "11:30:54 PST"]
[Termination "Game drawn by repetition"]

1. e4 {[%clk 0:03:00.9]} 1... e5 {[%clk 0:02:59.2]} 2. Nf3 {[%clk 0:03:00.9]}
2... Nc6 {[%clk 0:02:51.9]} 3. Bb5 {[%clk 0:03:00.5]} 3... a6 {[%clk 0:02:51.5]}
4. Ba4 {[%clk 0:02:59.7]} 4... Nf6 {[%clk 0:02:51.1]} 5. O-O {[%clk 0:02:59]}
5... b5 {[%clk 0:02:45.7]} 6. Bb3 {[%clk 0:02:58.8]} 6... Be7 {[%clk 0:02:46.3]}
7. d3 {[%clk 0:02:56.6]} 7... O-O {[%clk 0:02:45.7]} 8. a4 {[%clk 0:02:53.7]}
8... Rb8 {[%clk 0:02:44.3]} 9. Nbd2 {[%clk 0:02:50.4]} 9... d6 {[%clk 0:02:43]}
10. Re1 {[%clk 0:02:47.1]} 10... Bg4 {[%clk 0:02:41.3]} 11. h3 {[%clk
0:02:45.7]} 11... Bh5 {[%clk 0:02:40.9]} 12. Nf1 {[%clk 0:02:46.1]} 12... Nd4
{[%clk 0:02:40.3]} 13. g4 {[%clk 0:02:44.1]} 13... Nxf3+ {[%clk 0:02:31.6]} 14.
Qxf3 {[%clk 0:02:45]} 14... Bg6 {[%clk 0:02:32]} 15. axb5 {[%clk 0:02:43.5]}
15... axb5 {[%clk 0:02:31.7]} 16. Ng3 {[%clk 0:02:41.4]} 16... Nd7 {[%clk
0:02:29.3]} 17. c3 {[%clk 0:02:26.7]} 17... Bg5 {[%clk 0:02:26.3]} 18. Be3
{[%clk 0:02:24.7]} 18... Qf6 {[%clk 0:02:16.6]} 19. Kg2 {[%clk 0:02:14.3]} 19...
Qxf3+ {[%clk 0:02:03]} 20. Kxf3 {[%clk 0:02:15.2]} 20... Bxe3 {[%clk 0:02:02.3]}
21. Kxe3 {[%clk 0:02:16.1]} 21... c5 {[%clk 0:02:01.9]} 22. Ra7 {[%clk
0:02:13.3]} 22... Rfd8 {[%clk 0:01:59.8]} 23. Rea1 {[%clk 0:02:04.8]} 23... Kf8
{[%clk 0:01:54.9]} 24. Bd5 {[%clk 0:01:58.1]} 24... b4 {[%clk 0:01:47.4]} 25.
Rc7 {[%clk 0:01:43.5]} 25... Nb6 {[%clk 0:01:44.6]} 26. c4 {[%clk 0:01:37.1]}
26... Nxd5+ {[%clk 0:01:41.9]} 27. exd5 {[%clk 0:01:35.9]} 27... Ra8 {[%clk
0:01:39.4]} 28. Raa7 {[%clk 0:01:31.4]} 28... Rxa7 {[%clk 0:01:39]} 29. Rxa7
{[%clk 0:01:32.3]} 29... h6 {[%clk 0:01:38.1]} 30. Nf1 {[%clk 0:01:27.7]} 30...
f5 {[%clk 0:01:34.4]} 31. f3 {[%clk 0:01:28.2]} 31... f4+ {[%clk 0:01:34.2]} 32.
Ke2 {[%clk 0:01:26.8]} 32... h5 {[%clk 0:01:30.8]} 33. Nd2 {[%clk 0:01:24.9]}
33... Kg8 {[%clk 0:01:22.8]} 34. Nb3 {[%clk 0:01:22.7]} 34... Kh7 {[%clk
0:01:12.8]} 35. Na5 {[%clk 0:01:21.9]} 35... Kh6 {[%clk 0:01:10.3]} 36. Nc6
{[%clk 0:01:18.9]} 36... Rf8 {[%clk 0:01:06.2]} 37. Rd7 {[%clk 0:01:15.1]} 37...
Rf6 {[%clk 0:00:53.4]} 38. Ne7 {[%clk 0:01:11.5]} 38... Kg5 {[%clk 0:00:48.7]}
39. Ng8 {[%clk 0:00:47.8]} 39... hxg4 {[%clk 0:00:46.8]} 40. hxg4 {[%clk
0:00:47]} 40... Rf8 {[%clk 0:00:32.9]} 41. Rxg7 {[%clk 0:00:46.5]} 41... Ra8
{[%clk 0:00:28.9]} 42. Ne7 {[%clk 0:00:45]} 42... Kf6 {[%clk 0:00:29]} 43. Rxg6+
{[%clk 0:00:42]} 43... Kxe7 {[%clk 0:00:29.4]} 44. Rg7+ {[%clk 0:00:38.1]} 44...
Kf8 {[%clk 0:00:24.9]} 45. Rd7 {[%clk 0:00:36.2]} 45... Ra2 {[%clk 0:00:24.8]}
46. Rxd6 {[%clk 0:00:36.7]} 46... Rxb2+ {[%clk 0:00:25.3]} 47. Kd1 {[%clk
0:00:37.1]} 47... Rf2 {[%clk 0:00:24.6]} 48. Rf6+ {[%clk 0:00:32.5]} 48... Ke7
{[%clk 0:00:20.9]} 49. Re6+ {[%clk 0:00:32.2]} 49... Kd7 {[%clk 0:00:21.5]} 50.
Rxe5 {[%clk 0:00:32.1]} 50... Rxf3 {[%clk 0:00:22.2]} 51. Kc2 {[%clk 0:00:27.5]}
51... Rf2+ {[%clk 0:00:20.9]} 52. Kb3 {[%clk 0:00:27.1]} 52... Rd2 {[%clk
0:00:21]} 53. g5 {[%clk 0:00:25.3]} 53... Rxd3+ {[%clk 0:00:21.3]} 54. Kb2
{[%clk 0:00:25.8]} 54... Rg3 {[%clk 0:00:21]} 55. Rf5 {[%clk 0:00:25.5]} 55...
f3 {[%clk 0:00:21.1]} 56. g6 {[%clk 0:00:19.1]} 56... Rxg6 {[%clk 0:00:19.7]}
57. Rxf3 {[%clk 0:00:19.4]} 57... Kd6 {[%clk 0:00:19.9]} 58. Rf4 {[%clk
0:00:18.5]} 58... Rg3 {[%clk 0:00:19.2]} 59. Rh4 {[%clk 0:00:16.7]} 59... Rg2+
{[%clk 0:00:17.1]} 60. Kb3 {[%clk 0:00:16.5]} 60... Rg3+ {[%clk 0:00:17.4]} 61.
Kb2 {[%clk 0:00:17]} 61... Rc3 {[%clk 0:00:16.8]} 62. Re4 {[%clk 0:00:16.8]}
62... Kd7 {[%clk 0:00:16.8]} 63. Kb1 {[%clk 0:00:15.8]} 63... Rd3 {[%clk
0:00:16.4]} 64. Kc2 {[%clk 0:00:14.3]} 64... Rc3+ {[%clk 0:00:16.1]} 65. Kb2
{[%clk 0:00:12.5]} 65... Kd6 {[%clk 0:00:17]} 66. Re6+ {[%clk 0:00:11.7]} 66...
Kd7 {[%clk 0:00:17.3]} 67. Re4 {[%clk 0:00:12.6]} 67... Kd6 {[%clk 0:00:17.3]}
68. Re6+ {[%clk 0:00:12]} 68... Kd7 {[%clk 0:00:17.7]} 69. Re4 {[%clk
0:00:12.3]} 1/2-1/2

[Event "*** Titled Tuesday Blitz"]
[Site "Chess.com"]
[Date "2021.02.16"]
[Round "8"]
[White "kidagent"]
[Black "barriochess"]
[Result "1-0"]
[WhiteElo "2323"]
[BlackElo "2433"]
[TimeControl "180+1"]
[EndTime "11:30:54 PST"]
[Termination "kidagent won by checkmate"]

1. e4 {[%clk 0:03:00.9]} 1... e6 {[%clk 0:02:58.9]} 2. d4 {[%clk 0:03:00.5]}
2... d5 {[%clk 0:02:58.7]} 3. Nd2 {[%clk 0:03:01.1]} 3... Nf6 {[%clk 0:02:57.9]}
4. e5 {[%clk 0:03:01.2]} 4... Nfd7 {[%clk 0:02:58.1]} 5. f4 {[%clk 0:03:01.7]}
5... c5 {[%clk 0:02:58.5]} 6. c3 {[%clk 0:03:02.4]} 6... Nc6 {[%clk 0:02:58.9]}
7. Ndf3 {[%clk 0:03:01]} 7... Qb6 {[%clk 0:02:57.5]} 8. Ne2 {[%clk 0:03:00.5]}
8... f6 {[%clk 0:02:57.1]} 9. exf6 {[%clk 0:02:56.9]} 9... Nxf6 {[%clk
0:02:56.7]} 10. Qb3 {[%clk 0:02:36.5]} 10... c4 {[%clk 0:02:39.3]} 11. Qc2
{[%clk 0:02:34.2]} 11... Bd6 {[%clk 0:02:35.5]} 12. g3 {[%clk 0:02:29.1]} 12...
O-O {[%clk 0:02:33.6]} 13. Bg2 {[%clk 0:02:27.5]} 13... Ne4 {[%clk 0:02:27.7]}
14. Be3 {[%clk 0:02:19.7]} 14... e5 {[%clk 0:02:23]} 15. O-O-O {[%clk
0:02:03.4]} 15... exf4 {[%clk 0:01:54.2]} 16. Bxf4 {[%clk 0:01:55.9]} 16... Bf5
{[%clk 0:01:46.6]} 17. Nh4 {[%clk 0:01:53.8]} 17... Bg4 {[%clk 0:01:17.2]} 18.
Bxe4 {[%clk 0:01:45.3]} 18... Bxf4+ {[%clk 0:01:15.7]} 19. gxf4 {[%clk
0:01:28.4]} 19... dxe4 {[%clk 0:01:15.5]} 20. Ng2 {[%clk 0:01:13.1]} 20... Bf3
{[%clk 0:01:12]} 21. Rhg1 {[%clk 0:01:11.2]} 21... Kh8 {[%clk 0:01:09.7]} 22.
Ne3 {[%clk 0:01:04.4]} 22... Qa6 {[%clk 0:01:01.1]} 23. Kb1 {[%clk 0:01:00.7]}
23... b5 {[%clk 0:01:00.9]} 24. d5 {[%clk 0:00:53.4]} 24... Nd8 {[%clk
0:00:47.1]} 25. Rdf1 {[%clk 0:00:48]} 25... Rb8 {[%clk 0:00:39.8]} 26. Nd4
{[%clk 0:00:41.4]} 26... Rxf4 {[%clk 0:00:35]} 27. Rg3 {[%clk 0:00:27.1]} 27...
Qf6 {[%clk 0:00:33.3]} 28. Rfg1 {[%clk 0:00:15.6]} 28... g6 {[%clk 0:00:29.6]}
29. Ng4 {[%clk 0:00:12]} 29... Qh4 {[%clk 0:00:20.3]} 30. Ne5 {[%clk 0:00:10.5]}
30... Rb7 {[%clk 0:00:19.8]} 31. Nexf3 {[%clk 0:00:08.9]} 31... exf3 {[%clk
0:00:18.8]} 32. Nxf3 {[%clk 0:00:09.1]} 32... Qf6 {[%clk 0:00:17.5]} 33. Qe2
{[%clk 0:00:07.2]} 33... Rf7 {[%clk 0:00:17.6]} 34. Nd4 {[%clk 0:00:06]} 34...
Nb7 {[%clk 0:00:17.6]} 35. Re3 {[%clk 0:00:05.8]} 35... Nd6 {[%clk 0:00:17.4]}
36. Re1 {[%clk 0:00:06.3]} 36... Kg7 {[%clk 0:00:17.1]} 37. Ne6+ {[%clk
0:00:05.8]} 37... Kh6 {[%clk 0:00:16.8]} 38. Nxf4 {[%clk 0:00:06.4]} 38... Qxf4
{[%clk 0:00:16.9]} 39. Rh3+ {[%clk 0:00:05]} 39... Kg7 {[%clk 0:00:16.6]} 40.
Qe5+ {[%clk 0:00:05.4]} 40... Qxe5 {[%clk 0:00:17.1]} 41. Rxe5 {[%clk
0:00:05.9]} 41... a6 {[%clk 0:00:18]} 42. Re6 {[%clk 0:00:05.9]} 42... Rd7
{[%clk 0:00:18.7]} 43. Rhe3 {[%clk 0:00:05.1]} 43... Nf5 {[%clk 0:00:18.3]} 44.
R3e5 {[%clk 0:00:04.3]} 44... h5 {[%clk 0:00:18.4]} 45. Rxa6 {[%clk 0:00:03.9]}
45... Kh6 {[%clk 0:00:17.5]} 46. a4 {[%clk 0:00:04]} 46... Kg5 {[%clk
0:00:17.8]} 47. axb5 {[%clk 0:00:03.8]} 47... Kf4 {[%clk 0:00:18.2]} 48. Ree6
{[%clk 0:00:03.8]} 48... Rxd5 {[%clk 0:00:18.6]} 49. Rxg6 {[%clk 0:00:03.9]}
49... Rxb5 {[%clk 0:00:18.4]} 50. Raf6 {[%clk 0:00:03]} 50... Ke5 {[%clk
0:00:18.3]} 51. Rf8 {[%clk 0:00:03.3]} 51... Ne3 {[%clk 0:00:18.2]} 52. Rg5+
{[%clk 0:00:03.2]} 52... Ke4 {[%clk 0:00:16.6]} 53. Rxb5 {[%clk 0:00:03.3]}
53... Ng4 {[%clk 0:00:15]} 54. Rxh5 {[%clk 0:00:03.6]} 54... Ne3 {[%clk
0:00:14.3]} 55. Rh4+ {[%clk 0:00:04]} 55... Kd3 {[%clk 0:00:15.2]} 56. Rd8+
{[%clk 0:00:03.6]} 56... Ke2 {[%clk 0:00:15.6]} 57. Re8 {[%clk 0:00:03.6]} 57...
Kd2 {[%clk 0:00:15.7]} 58. Rd4+ {[%clk 0:00:03.9]} 58... Ke2 {[%clk 0:00:15.3]}
59. Rde4 {[%clk 0:00:04.1]} 59... Kd2 {[%clk 0:00:15.3]} 60. Rxe3 {[%clk
0:00:03.8]} 60... Kd1 {[%clk 0:00:16.2]} 61. Re1+ {[%clk 0:00:03.4]} 61... Kd2
{[%clk 0:00:16.4]} 62. R8e2+ {[%clk 0:00:03.8]} 62... Kd3 {[%clk 0:00:15.2]} 63.
Re4 {[%clk 0:00:04.1]} 63... Kd2 {[%clk 0:00:15]} 64. Rf1 {[%clk 0:00:04.2]}
64... Kd3 {[%clk 0:00:15.2]} 65. Rd4+ {[%clk 0:00:04.1]} 65... Ke3 {[%clk
0:00:15.3]} 66. Rf8 {[%clk 0:00:04.4]} 66... Ke2 {[%clk 0:00:15.6]} 67. Kc2
{[%clk 0:00:04]} 67... Ke3 {[%clk 0:00:15.6]} 68. Rf7 {[%clk 0:00:03.1]} 68...
Ke2 {[%clk 0:00:15.6]} 69. Re4# {[%clk 0:00:03.4]} 1-0

[Event "*** Titled Tuesday Blitz"]
[Site "Chess.com"]
[Date "2021.02.16"]
[Round "8"]
[White "woodhy"]
[Black "zmeeed67"]
[Result "1-0"]
[WhiteElo "2457"]
[BlackElo "2314"]
[TimeControl "180+1"]
[EndTime "11:31:01 PST"]
[Termination "woodhy won on time"]

1. e4 {[%clk 0:03:00.9]} 1... Nc6 {[%clk 0:02:59.8]} 2. Nc3 {[%clk 0:02:59.3]}
2... Nf6 {[%clk 0:02:56.6]} 3. Nf3 {[%clk 0:02:47.5]} 3... d6 {[%clk 0:02:55.2]}
4. Bb5 {[%clk 0:02:46.2]} 4... a6 {[%clk 0:02:54]} 5. Ba4 {[%clk 0:02:44.1]}
5... Bg4 {[%clk 0:02:52.8]} 6. h3 {[%clk 0:02:32.9]} 6... Bxf3 {[%clk
0:02:46.1]} 7. Qxf3 {[%clk 0:02:32.1]} 7... Nd7 {[%clk 0:02:42.2]} 8. Bxc6
{[%clk 0:02:28.9]} 8... bxc6 {[%clk 0:02:41.6]} 9. d4 {[%clk 0:02:29.8]} 9... e6
{[%clk 0:02:38.9]} 10. O-O {[%clk 0:02:23.1]} 10... Be7 {[%clk 0:02:38]} 11. d5
{[%clk 0:02:00]} 11... cxd5 {[%clk 0:02:36.2]} 12. exd5 {[%clk 0:01:55.8]} 12...
e5 {[%clk 0:02:35.7]} 13. Ne4 {[%clk 0:01:53.8]} 13... O-O {[%clk 0:02:32.2]}
14. Ng3 {[%clk 0:01:52.6]} 14... Bg5 {[%clk 0:02:16]} 15. Be3 {[%clk 0:01:42.9]}
15... f5 {[%clk 0:02:02.8]} 16. Bxg5 {[%clk 0:00:54.4]} 16... Qxg5 {[%clk
0:02:00.2]} 17. Qe3 {[%clk 0:00:48.8]} 17... Qg6 {[%clk 0:01:48.5]} 18. f4
{[%clk 0:00:44.7]} 18... Rae8 {[%clk 0:01:36.2]} 19. c4 {[%clk 0:00:43.8]} 19...
a5 {[%clk 0:01:29.5]} 20. b3 {[%clk 0:00:42.3]} 20... Nc5 {[%clk 0:01:28.6]} 21.
Rae1 {[%clk 0:00:39.5]} 21... exf4 {[%clk 0:01:16]} 22. Qxf4 {[%clk 0:00:40.4]}
22... Rxe1 {[%clk 0:01:15.4]} 23. Rxe1 {[%clk 0:00:40.5]} 23... Nd3 {[%clk
0:01:15.8]} 24. Qf2 {[%clk 0:00:31.1]} 24... Nxe1 {[%clk 0:01:13.5]} 25. Qxe1
{[%clk 0:00:32]} 25... f4 {[%clk 0:01:12.7]} 26. Nh1 {[%clk 0:00:29.9]} 26... f3
{[%clk 0:01:11.3]} 27. Qf2 {[%clk 0:00:27.7]} 27... fxg2 {[%clk 0:01:05.3]} 28.
Qxg2 {[%clk 0:00:28.6]} 28... Qxg2+ {[%clk 0:00:49.5]} 29. Kxg2 {[%clk
0:00:29.5]} 29... a4 {[%clk 0:00:47.3]} 30. Nf2 {[%clk 0:00:26.3]} 30... axb3
{[%clk 0:00:46.6]} 31. axb3 {[%clk 0:00:27.2]} 31... Rb8 {[%clk 0:00:46.7]} 32.
Ne4 {[%clk 0:00:26.3]} 32... Rxb3 {[%clk 0:00:45.8]} 33. c5 {[%clk 0:00:27.2]}
33... Re3 {[%clk 0:00:44.5]} 34. cxd6 {[%clk 0:00:26.5]} 34... cxd6 {[%clk
0:00:42.2]} 35. Nxd6 {[%clk 0:00:27.4]} 35... Rd3 {[%clk 0:00:41.4]} 36. Nf5
{[%clk 0:00:26.8]} 36... g6 {[%clk 0:00:38.4]} 37. Nd6 {[%clk 0:00:17.1]} 37...
Rxd5 {[%clk 0:00:36.8]} 38. Ne4 {[%clk 0:00:18]} 38... Rd3 {[%clk 0:00:34]} 39.
Nf6+ {[%clk 0:00:17.4]} 39... Kg7 {[%clk 0:00:33.1]} 40. Ng4 {[%clk 0:00:18.3]}
40... Ra3 {[%clk 0:00:29.5]} 41. Ne5 {[%clk 0:00:18.3]} 41... h5 {[%clk
0:00:28.9]} 42. Nc4 {[%clk 0:00:14]} 42... Rc3 {[%clk 0:00:24.8]} 43. Ne5 {[%clk
0:00:13.1]} 43... Kh6 {[%clk 0:00:24.1]} 44. Nf7+ {[%clk 0:00:12.1]} 44... Kg7
{[%clk 0:00:22.6]} 45. Ng5 {[%clk 0:00:13]} 45... h4 {[%clk 0:00:20.1]} 46. Ne6+
{[%clk 0:00:09.3]} 46... Kh6 {[%clk 0:00:17.6]} 47. Nf4 {[%clk 0:00:10.2]} 47...
Rg3+ {[%clk 0:00:16.6]} 48. Kh2 {[%clk 0:00:09.4]} 48... g5 {[%clk 0:00:16.5]}
49. Ne2 {[%clk 0:00:08.4]} 49... Re3 {[%clk 0:00:15.1]} 50. Nd4 {[%clk
0:00:08.7]} 50... Rd3 {[%clk 0:00:14.5]} 51. Ne6 {[%clk 0:00:04.6]} 51... Rd2+
{[%clk 0:00:11.5]} 52. Kg1 {[%clk 0:00:04.4]} 52... Kg6 {[%clk 0:00:12]} 53. Nc5
{[%clk 0:00:04.6]} 53... Kf5 {[%clk 0:00:11.3]} 54. Nb3 {[%clk 0:00:03.8]} 54...
Rb2 {[%clk 0:00:10.5]} 55. Nd4+ {[%clk 0:00:03.7]} 55... Ke4 {[%clk 0:00:08.9]}
56. Ne6 {[%clk 0:00:03.5]} 56... Kf5 {[%clk 0:00:06.1]} 57. Nd4+ {[%clk
0:00:03]} 57... Kf4 {[%clk 0:00:04.4]} 58. Ne6+ {[%clk 0:00:03.3]} 58... Kg3
{[%clk 0:00:03.9]} 59. Kf1 {[%clk 0:00:03.2]} 59... Rb6 {[%clk 0:00:01.5]} 60.
Nxg5 {[%clk 0:00:02.9]} 1-0